Cogmind - Beta 13 @@@ ROGUE MODE // 2024.06.30 @ 18:29:50 Player: Johnny5001 Result: Destroyed by 7X-RR4(R) with Subdweller Laser Performance ------------- Evolutions (0) 0 Regions Visited (2) 400 Robots Destroyed (29) 145 Value Destroyed (724) 724 Prototype IDs (13) 260 Alien Tech Used (0) 0 Bonus (0) 0 TOTAL SCORE: 1529 Bonus ------- None Cogmind --------- Core Integrity 0/250 Matter 255/300 Energy 18/100 System Corruption 0% Temperature Danger (421) Movement Core (550) Ox10 Location -10/Subcaves Parts ------- > --- POWER (1) -------- (None) > --- PROPULSION (2) --- (None) > --- UTILITY (2) ------ Large Storage Unit Makeshift Light Armor Plating > --- WEAPON (2) ------- Autobeam Battle Cannon > --- INVENTORY (15) --- Arachnoskeleton Medium Matter Pod (24) Structural Scanner Visual Processing Unit Sensor Array Barrage Gun Light Cannon Battle Cannon Subdweller Shrapnel Launcher Dirty Datajack (20) Multitool Hammer Ripper Peak State ------------ > --- POWER ------------ Ion Engine > --- PROPULSION ------- Light Treads Light Treads > --- UTILITY ---------- Large Storage Unit Makeshift Light Armor Plating > --- WEAPON ----------- Battle Cannon Battle Cannon > --- INVENTORY -------- Arachnoskeleton Medium Matter Pod Structural Scanner Visual Processing Unit Sensor Array Barrage Gun Light Cannon Subdweller Shrapnel Launcher Subdweller Shrapnel Launcher Dirty Datajack Multitool Hammer Ripper [Rating: 16] Favorites ----------- Power Ion Engine Engine Ion Engine Propulsion Light Treads Treads Light Treads Utility Large Storage Unit Device Seismic Detector Storage Large Storage Unit Protection Scrap Shield Weapon Battle Cannon Energy Gun Small Laser Ballistic Gun Light Assault Rifle Ballistic Cannon Battle Cannon Impact Weapon Hammer Build | -11 -10 -10 ------- Run | Yrd Mat Sub Slots Evolved . | . . . Power . | . . . Propulsion . | . . . Utility . | . . . Weapon . | . . . Parts Attached 47 | 7 4 36 Power 4 | 1 1 2 Engine 4 | 1 1 2 Core . | . . . Reactor . | . . . Propulsion 7 | 2 . 5 Treads 7 | 2 . 5 Leg . | . . . Wheel . | . . . Hover . | . . . Flight . | . . . Utility 16 | 2 3 11 Device 2 | 1 . 1 Storage 5 | 1 1 3 Processor . | . . . Hackware . | . . . Protection 9 | . 2 7 Artifact . | . . . Weapon 20 | 2 . 18 Energy Gun 2 | 1 . 1 Energy Cannon . | . . . Ballistic Gun 3 | 1 . 2 Ballistic Cannon 8 | . . 8 Launcher . | . . . Special Weapon . | . . . Impact Weapon 7 | . . 7 Slashing Weapon . | . . . Piercing Weapon . | . . . Special Melee Weapon . | . . . Unidentified Prototypes . | . . . Parts Lost 6 | . . 6 Power 2 | . . 2 Propulsion 2 | . . 2 Utility 2 | . . 2 Weapon . | . . . Highest Loss Streak 3 | . . 3 To Critical Strikes . | . . . Average Slot Usage (%) 94 | . 99 92 Engine 13 | . 14 13 Treads 27 | . 28 27 Device 3 | . 7 2 Storage 9 | . 14 8 Protection 9 | . 6 11 Energy Gun 4 | . 14 1 Ballistic Gun 4 | . 14 1 Ballistic Cannon 15 | . . 20 Impact Weapon 3 | . . 4 Naked Turns 4 | . . 4 Heaviest Build 37 | 13 30 37 Greatest Support 40 | 40 40 40 Greatest Overweight (x) 2 | . . 2 Average Overweight (x) . | . . . Largest Inventory Capacity 35 | 8 15 35 Average Capacity 12 | 7 14 11 Most Carried 15 | 6 15 15 Average Carried 10 | 4 12 10 Final Capacity 15 | 8 15 15 Final Carried 15 | 6 14 15 Class Distribution -------------------- 100% | Mutant Dominant Class ---------------- Mutant | -10/Materials Mutant | -10/Subcaves Resources | -11 -10 -10 ----------- Run | Yrd Mat Sub Matter Collected 1354 | 271 146 937 Remotely . | . . . Salvage Created 480 | 21 181 278 Parts 49 | 2 15 32 Haulers Intercepted . | . . . Recyclers Shooed . | . . . Parts Field Recycled . | . . . Retrieved Matter . | . . . Parts Self-Destructed 20 | . . 20 Prevented . | . . . Kills | -11 -10 -10 ------- Run | Yrd Mat Sub Combat Hostiles Destroyed 25 | . 8 17 Guns 9 | . 8 1 Cannons 16 | . . 16 Classes Destroyed 6 | 1 3 2 Tunneler 1 | 1 . . Turret 2 | . . 2 Watcher 1 | . 1 . Swarmer 12 | . 6 6 Grunt 2 | . 2 . Subdweller 11 | . . 11 Best Kill Streak 6 | 1 6 6 Combat Bots Only 6 | . 6 4 Max Kills in Single Turn 2 | 1 2 2 Gunslinging 1 | . 1 . Exploded . | . . . Melee . | . . . Uniques/NPCs Destroyed . | . . . Combat | -11 -10 -10 -------- Run | Yrd Mat Sub Hostile Shots Fired 163 | . 23 140 Missed 50 | . 6 44 Damage Taken 1671 | . 166 1505 Core 252 | . . 252 Absorbed by Shields . | . . . Redirected to Shielding 6 | . . 6 Regen/Repaired (Parts) 46 | . 46 . Core Remaining (%) 100 | 100 . . Volleys Fired 88 | 1 16 71 Largest 2 | 2 2 2 Hottest 78 | 60 60 78 Shots Fired 169 | 2 32 135 Gun 59 | 2 32 25 Cannon 110 | . . 110 Launcher . | . . . Special . | . . . Kinetic 134 | 1 16 117 Thermal 35 | 1 16 18 Explosive . | . . . Electromagnetic . | . . . Robot Hit Streak 22 | 1 10 22 Robot Miss Streak 9 | . 2 9 Penetration Max . | . . . Secondary Targets 1 | . 1 . Max Gunslinging Chain 1 | . 1 . Autonomous 22 | . . 22 Shots Hit Robots 115 | 1 22 92 Core Hits 50 | 1 15 34 Critical Kills . | . . . Critical Parts Destroyed . | . . . Critical Strikes . | . . . Melee Attacks 33 | . . 33 Impact 33 | . . 33 Slashing . | . . . Piercing . | . . . Sneak Attacks . | . . . Combat Hostiles . | . . . Follow-up Attacks . | . . . Damage Inflicted 1955 | 10 235 1710 Guns 437 | 10 235 192 Cannons 1518 | . . 1518 Explosions . | . . . Melee . | . . . Ramming . | . . . Kinetic 1652 | . 83 1569 Thermal 303 | 10 152 141 Explosive . | . . . Electromagnetic . | . . . Impact . | . . . Slashing . | . . . Piercing . | . . . Highest Corruption . | . . . Average Corruption . | . . . Corruption Purged . | . . . Corruption Blocked . | . . . Overload Shots . | . . . Overflow Damage . | . . . Projectiles . | . . . Explosions . | . . . Melee . | . . . Knockbacks 14 | . . 14 Impact . | . . . Kinetic 14 | . . 14 Secondary . | . . . Self-Inflicted Damage . | . . . Shots . | . . . Rammed . | . . . Targets Rammed . | . . . Kicked . | . . . Crushed . | . . . Highest Temperature 415 | 20 98 415 Average Temperature 104 | 15 31 177 Received Heat Transfer 375 | . 45 330 Siege Activations . | . . . Robots Corrupted . | . . . Combat Hostiles . | . . . Parts Fried . | . . . Impact Corruptions . | . . . Robots Melted . | . . . Combat Hostiles . | . . . Parts Melted 2 | . 2 . Heat Transferred 900 | 25 350 525 Parts Sabotaged . | . . . Parts Stolen . | . . . Parts Stripped . | . . . Power Chain Reactions . | . . . Alert | -11 -10 -10 ------- Run | Yrd Mat Sub Peak Influence 235 | 5 235 . Initial 3 | . 3 . Average 57 | 1 60 . Maximum Alert Level 1 | . 1 . Low Security (%) 98 | 100 97 . Level 1 1 | . 2 . Level 2 . | . . . Level 3 . | . . . Level 4 . | . . . Level 5 . | . . . High Security . | . . . Max Security . | . . . Squads Dispatched . | . . . Investigation . | . . . Extermination . | . . . Reinforcement . | . . . Assault . | . . . Garrison . | . . . Intercept . | . . . Searches Triggered . | . . . Construction Impeded . | . . . Haulers Reinforced . | . . . Active Scanning Responses . | . . . Cargo Convoy Interrupts . | . . . Stealth | -11 -10 -10 --------- Run | Yrd Mat Sub Distress Signals 3 | . 3 . Communications Jammed . | . . . Distress Signals . | . . . Times Spotted 50 | . 16 34 Peak Tracking Total 6 | . 4 6 Tactical Retreats 4 | . 1 3 Traps | -11 -10 -10 ------- Run | Yrd Mat Sub Traps Triggered . | . . . Indirectly . | . . . Trap Hack Attempts . | . . . Triggered . | . . . Disarmed . | . . . Reprogrammed . | . . . Reused . | . . . Traps Extracted . | . . . Installed . | . . . Triggered . | . . . Machines | -11 -10 -10 ---------- Run | Yrd Mat Sub Machines Disabled 3 | . . 3 Max in Single Turn 1 | . . 1 Machines Repaired . | . . . Machines Dismantled . | . . . Machines Sabotaged . | . . . Overloaded Fab Kills . | . . . Hacking | -11 -10 -10 --------- Run | Yrd Mat Sub Machines Accessed 9 | . 7 2 Terminals 6 | . 6 . Fabricators . | . . . Repair Stations 1 | . 1 . Recycling Units . | . . . Scanalyzers . | . . . Garrison Access . | . . . Total Hacks 26 | . 23 3 Successful 19 | . 16 3 Failed 7 | . 7 . Catastrophic . | . . . Database Lockouts . | . . . Manual 6 | . 6 . Terminals 21 | . 21 . Fabricators . | . . . Repair Stations 2 | . 2 . Recycling Units . | . . . Scanalyzers . | . . . Garrison Access . | . . . Terminal Hacks 16 | . 13 3 Record 2 | . . 2 Robot Schematic 1 | . 1 . Robot Analysis 1 | . 1 . Prototype ID Bank 2 | . 2 . Branch Access Points 1 | . 1 . Emergency Access Points 2 | . 2 . Locate Traps 2 | . 2 . Maintenance Status 1 | . 1 . Zone Layout 3 | . 3 . Derelict Proto ID Bank 1 | . . 1 Fabricator Hacks . | . . . Repair Station Hacks 2 | . 2 . Scan Component 1 | . 1 . Repair 1 | . 1 . Recycling Unit Hacks . | . . . Scanalyzer . | . . . Garrison Access Hacks . | . . . Unauthorized Hacks 1 | . 1 . Terminals 1 | . 1 . Botnet 1 | . 1 . Fabricators . | . . . Repair Stations . | . . . Recycling Units . | . . . Scanalyzers . | . . . Garrison Access . | . . . Data Cores Recovered . | . . . Used . | . . . Hacking Detections 6 | . 6 . Full Trace Events . | . . . Feedback Events . | . . . Feedback Blocked . | . . . Robot Schematics Acquired 1 | . 1 . Robots Built . | . . . Authchips . | . . . Time . | . . . Total Robot Build Rating . | . . . Part Schematics Acquired . | . . . Parts Built . | . . . Authchips . | . . . Time . | . . . Total Part Build Rating . | . . . Parts Repaired 1 | . 1 . Time 26 | . 26 . Parts Recycled . | . . . Recycled Matter . | . . . Retrieved Matter . | . . . Retrieved Components . | . . . Parts Scanalyzed . | . . . Part Schematics Acquired . | . . . Parts Damaged . | . . . Bothacking | -11 -10 -10 ------------ Run | Yrd Mat Sub Used RIF Installer . | . . . Robots Hacked . | . . . Non-combat . | . . . Combat . | . . . Robot Hacks Applied . | . . . Relay Couplers Released . | . . . Fabnet Peak Effective % . | . . . Robots Rewired . | . . . Allies Hacked . | . . . Hacks Repelled . | . . . Allies | -11 -10 -10 -------- Run | Yrd Mat Sub Total Allies . | . . . Largest Group . | . . . Highest-Rated Group . | . . . Highest-Rated Ally . | . . . Total Orders . | . . . Ally Attacks . | . . . Total Damage . | . . . Kills . | . . . Allies Corrupted . | . . . Allies Melted . | . . . Intel | -11 -10 -10 ------- Run | Yrd Mat Sub Robot Analysis Total 1 | . 1 . Derelict Logs Recovered 3 | . . 3 Drone Launches . | . . . Drone Recoveries . | . . . Exploration | -11 -10 -10 ------------- Run | Yrd Mat Sub Turns Passed 5716 | 92 1425 4199 Spaces Moved 2789 | 48 468 2273 Core 23 | 4 . 19 Treads 2766 | 44 468 2254 Legs . | . . . Wheels . | . . . Hover . | . . . Flight . | . . . Fastest Speed 50 | 50 160 50 Average Speed 159 | 150 160 159 Slowest Speed 240 | 160 160 240 Overloaded Moves . | . . . Propulsion Burnouts . | . . . Robots Hopped . | . . . Cave-ins Triggered . | . . . Exploration Rate (%) 59 | 4 81 93 Regions Visited 2 Branch Regions 1 Pre-discovered Areas 4 | . . 4 Known Exits Taken . | . . . Unknown Exits Taken 2 | 1 1 . Scrap Searched 10 | . . 10 Spaces Dug . | . . . Terrain Destroyed 1 | . . 1 Melee . | . . . Projectile 1 | . . 1 AOE . | . . . Terrain Rammed . | . . . Walls Destroyed . | . . . Machines Disabled . | . . . Actions | -11 -10 -10 --------- Run | Yrd Mat Sub Total 3843 | 62 1120 2661 Wait 815 | 1 611 203 Move 2787 | 47 467 2273 Hop . | . . . Pick Up 47 | 6 14 27 Fast Attach 23 | 7 1 15 Attach 2 | . . 2 Detach . | . . . Swap 22 | . 3 19 Drop 25 | . 8 17 Fire 88 | 1 16 71 Melee 33 | . . 33 Ram . | . . . Kick . | . . . Crush . | . . . Escape Stasis . | . . . Rewire . | . . . Trap . | . . . Miscellaneous 1 | . . 1 Route ------- -11/Scrapyard -10/Materials (discovered 5 exits: [*Mat x2] / *Min x2 / *Sub) -10/Subcaves (discovered 3 exits: [*Mat x2] / [*Rec]) History --------- Turn | Location | Event 38 | -11/Scrapyard | Discovered new exit (range 14) 93 | -11/Scrapyard | Entered Materials 312 | -10/Materials | Build established: Mutant 710 | -10/Materials | Discovered new exit (range 16) 726 | -10/Materials | Discovered new exit (range 16) 1063 | -10/Materials | Discovered new exit (range 9) 1080 | -10/Materials | Identified exit to Mines 1171 | -10/Materials | Repaired Lgt. Armor Plating 1509 | -10/Materials | Discovered new exit (range 5) 1518 | -10/Materials | Entered Subcaves 1521 | -10/Subcaves | Learned location of Mines (-10) 1726 | -10/Subcaves | Shifting Twisted Machinery released Sub. Power Source 1762 | -10/Subcaves | Shifting Twisted Machinery released Sub. Laser 1827 | -10/Subcaves | A swath of the cavern ceiling suddenly collapsed 2444 | -10/Subcaves | Shifting Twisted Machinery released Sub. Monowheel 2446 | -10/Subcaves | Shifting Twisted Machinery released Battle Cannon 2484 | -10/Subcaves | Learned location of Storage (-9) 2601 | -10/Subcaves | Visited 4L-MR0's lab 2628 | -10/Subcaves | Found Arachnoskeleton 2777 | -10/Subcaves | Visited Clippyterm 2782 | -10/Subcaves | Learned Factory emergency access door positions 3331 | -10/Subcaves | Discovered new exit (range 7) 3792 | -10/Subcaves | Learned location of Zion (-6) 3792 | -10/Subcaves | Met a Zionite searching for "candidates" 4032 | -10/Subcaves | A swath of the cavern ceiling suddenly collapsed 4260 | -10/Subcaves | Shifting Twisted Machinery released Sub. Power Source 4284 | -10/Subcaves | Shifting Twisted Machinery released Battle Cannon 4493 | -10/Subcaves | Discovered new exit (range 14) 4571 | -10/Subcaves | Disturbed a concealed Subdweller 5255 | -10/Subcaves | Discovered new exit (range 13) 5280 | -10/Subcaves | Released all parts (7) 5668 | -10/Subcaves | A Subdweller sparked back to life 5668 | -10/Subcaves | A Subdweller sparked back to life 5668 | -10/Subcaves | A Subdweller sparked back to life 5675 | -10/Subcaves | Core integrity fell below 50% 5710 | -10/Subcaves | Core integrity fell below 20% 5717 | -10/Subcaves | Destroyed by 7X-RR4(R) with Subdweller Laser Last Messages --------------- 05360_ Acquired 2 matter. 05365_ Acquired 18 matter. 05368_ Acquired 2 matter. 05433_ Acquired 4 matter. 05668_ 8O-5MQ(R) creaks and sparks as it begins to move. 05668_ 7X-RR4(R) creaks and sparks as it begins to move. 05668_ GO-XUK(R) creaks and sparks as it begins to move. 05671_ GO-XUK(R) knocked back. 05671_ Lgt. Treads destroyed. 05673_ 8O-5MQ(R) knocked back. 05676_ GO-XUK(R) destroyed. 05685_ 8O-5MQ(R) affixes Scrap Shield Fragment to Scrap Shield. 05689_ Ion Engine destroyed. 05701_ Lgt. Treads destroyed. 05707_ 8O-5MQ(R) destroyed. 05713_ 7X-RR4(R) knocked back. Map ----- +----------------------------------------------------+ | " "#???# #??##""""< # # ###??????????? | | # ""###?# ####" " # ##????????????? | | # ### ## " ##" ##?????????????? | | " ##" ## ### ##??????????????? | | ### # """"" ## ## #???????????????? | | ??###### | | | ###?????????????? | | ???????## ### ! ###???????????? | | ????????## #?# ## ### ##??????????? | | ?????????## ##?#######?## #??????????? | | ??????????######???????????## #??????????? | | ????????????????????????????## ## ##??????????? | | ????????????????????????????# ##?###???????????? | | ????????????????????????????#"" #???????????????? | | ????????????????????????????##"" #???????????????? | | ?????????????????????????????#"" ##??????????????? | | ????????????????????????????##"" "##?????????????? | | ???????????????????????????## " #?????????????? | | ??????????????????????????##/ ##?????????????? | | ?????????????????????????## % ###??????????????? | | ????????????????????????## ##???????????????? | | ????????????????????????# % R #???###?????????? | | ????????????????????????# % ##### #?????????? | | ????????????????????????# % #?????????? | | ?#####?###?###?????????## !%## #?????????? | | ?# " ## ### #########?# ### #?????????? | | ?# """ ## "###!@ "#?#" #?????????? | | ??# " ### #?#"""" ##?????????? | | ??# ## *"" """"""### ##% #??????????? | | ???# ### """"""#?####&*% #?????????? | | ???## # ##?#### ""#??? " " "#?????????? | | ????# ####?????# #??" #?????????? | | ??### ##???????# ?#" " #?????????? | | ??# #??????? ### #?????????? | | ??## #??????? #? ## ##?????????? | | ???### ## ###??????? ?####??????????? | | ?????##" ### #???????? # # ???????????????? | | ??????#### ##???????? ## ????????????????? | | ????????## ##???????? ?????????????????????? | | ??????### #??????? ?????????????????????? | | ?????## ##????? ????????????????????? | | ??#### ##???? #?????????????????????? | | ??# %% ##?? ## ???????????????????? | | ??# ###"##### #?# ???????????????????? | | ??# # ##??### ## ????????????????????? | | ??# ### #?????## #??????????????????????? | | ??# # ######? #???????????????????????? | | ?## ## ### ## #???????????????????????? | | ## # #= #??? #???????????????????????? | | # # ## * ##?? #????????????????????????? | | # ## # #?? ###??????????????????????? | +----------------------------------------------------+ Best States ------------- Heat Dissipation 25 Energy Generation 10 Energy Capacity 250 Matter Stores 300 Matter Capacity 300 Sight Range 16 Terrain Scan Density 10 Armor Coverage 800 Propulsion Shielding 33 Evasion (%) 40 Recoil Reduction 2 Item Schematics ----------------- None Robot Schematics ------------------ S-10 Pest | -10/Materials | Hacked Fabricated ------------ Nothing Alien Tech Used ----------------- None Achievements -------------- None Challenges ------------ None Game ------ Seed CatalystThermalCoupler Manual? 0 Play Time 01:10:01 Cumulative 43.1 hours Start 2024.06.30 @ 17:12:33 End 2024.06.30 @ 18:29:50 Sessions 1 Manual Loads 0 Difficulty Rogue Special Mode None Game No. 28 Rogue 28 Adventurer 0 Explorer 0 Win Type - Total 3 Types 2/0/0/1/0/0/0/0/0 Lore% 38 Gallery% 41 Achievement% 42 Wizard Run 0 Options --------- Layout 1 ASCII 0 Keyboard 0 Movement Mouse Keybinds 0 Fullscreen 1 Font 24/Smallcaps Map View 50x35 Zoom Use 0% Tactical HUD 1 Map Filters NONE Filters NONE Steam 0 RUN: 7f9f2b7f-fbf4-40b0-9f51-46dbc4caa7c3